fUST/lending_fUST_20250723
["ID","MTS","AMOUNT","RATE_DAILY","PERIOD"]
[374127867,1753219832023,-460.0,0.00016806,2]
[374127869,1753219832033,-460.0,0.00016806,2]
[374127871,1753219832042,-460.0,0.00016806,2]
[374127873,1753219832051,-460.0,0.00016806,2]
[374127875,1753219832061,-525.25433475,0.00016806,2]
[374127877,1753219832071,-460.0,0.00016806,2]
[374127880,1753219832080,-460.0,0.00016806,2]
[374127883,1753219832089,-460.0,0.00016806,2]
[374127884,1753219832098,-360.31046574,0.00016806,2]
[374127886,1753219832108,-460.0,0.00016806,2]
[374127887,1753219832117,-460.0,0.00016806,2]
[374127889,1753219832126,-500.0,0.00016806,2]
[374127891,1753219832135,-460.0,0.00016806,2]
[374127892,1753219832145,-289.39,0.00016806,2]
[374127893,1753219832155,-3729.96379135,0.00016806,2]
[374127894,1753219832165,-500.0,0.00016807,2]
[374127895,1753219832176,-500.0,0.00016807,2]
[374127896,1753219832187,-460.0,0.00016807,2]
[374127897,1753219832196,-395.80754164,0.00016807,2]
[374127945,1753219837974,-64.19245836,0.00016807,2]
[374127947,1753219837984,-226.56754162,0.00016807,2]
[374127953,1753219838092,-233.43245838,0.00016807,2]
[374127954,1753219838102,-460.0,0.00016807,2]
[374127955,1753219838111,-552.04538418,0.00016807,2]
[374127956,1753219838120,-460.0,0.00016807,2]
[374127957,1753219838245,-460.0,0.00016807,2]
[374127958,1753219838255,-460.0,0.00016807,2]
[374127959,1753219838264,-460.0,0.00016807,2]
[374127960,1753219838273,-460.0,0.00016808,2]
[374127961,1753219838283,-367.18135318,0.00016808,2]
[374127962,1753219838292,-545.01696553,0.00016808,2]
[374127963,1753219838302,-460.0,0.00016808,2]
[374127964,1753219838311,-460.0,0.00016808,2]
[374127965,1753219838321,-460.0,0.00016808,2]
[374127966,1753219838330,-460.0,0.00016808,2]
[374127967,1753219838339,-606.59,0.00016808,2]
[374127968,1753219838348,-460.0,0.00016808,2]
[374127969,1753219838357,-460.0,0.00016808,2]
[374127970,1753219838366,-460.0,0.00016808,2]
[374127971,1753219838375,-460.0,0.00016808,2]
[374127972,1753219838384,-488.2,0.00016808,2]
[374127973,1753219838393,-460.0,0.00016808,2]
[374127974,1753219838402,-460.0,0.00016808,2]
[374127975,1753219838412,-460.0,0.00016808,2]
[374127976,1753219838421,-460.0,0.00016808,2]
[374127977,1753219838430,-460.0,0.00016808,2]
[374127978,1753219838440,-460.0,0.00016808,2]
[374127979,1753219838449,-460.0,0.00016808,2]
[374127980,1753219838458,-460.0,0.00016809,2]
[374127981,1753219838467,-460.0,0.00016809,2]
[374127982,1753219838476,-460.0,0.0001708,2]
[374127983,1753219838486,-460.0,0.0001708,2]
[374127984,1753219838495,-460.0,0.0001708,2]
[374127985,1753219838504,-460.0,0.0001708,2]
[374127986,1753219838513,-460.0,0.0001708,2]
[374127987,1753219838522,-344.83509019,0.0001708,2]
[374127988,1753219838531,-460.0,0.00017081,2]
[374127989,1753219838540,-460.0,0.00017081,2]
[374127990,1753219838550,-460.0,0.00017081,2]
[374127991,1753219838559,-460.0,0.00017081,2]
[374127992,1753219838567,-460.0,0.00017081,2]
[374127993,1753219838577,-460.0,0.00017082,2]
[374127994,1753219838586,-460.0,0.00017082,2]
[374127995,1753219838597,-460.0,0.00017082,2]
[374127996,1753219838606,-460.0,0.00017082,2]
[374127997,1753219838616,-460.0,0.00017083,2]
[374127998,1753219838627,-460.0,0.00017083,2]
[374127999,1753219838637,-460.0,0.00017353,2]
[374128000,1753219838647,-460.0,0.00017353,2]
[374128001,1753219838660,-460.0,0.00017353,2]
[374128002,1753219838670,-460.0,0.00017353,2]
[374128003,1753219838680,-460.0,0.00017353,2]
[374128004,1753219838689,-460.0,0.00017353,2]
[374128005,1753219838699,-460.0,0.00017353,2]
[374128006,1753219838710,-386.19,0.00017353,2]
[374128007,1753219838719,-460.0,0.00017353,2]
[374128008,1753219838731,-460.0,0.00017353,2]
[374128009,1753219838741,-460.0,0.00017353,2]
[374128010,1753219838750,-460.0,0.00017353,2]
[374128011,1753219838761,-460.0,0.00017353,2]
[374128012,1753219838770,-460.0,0.00017354,2]
[374128013,1753219838779,-460.0,0.00017354,2]
[374128014,1753219838788,-460.0,0.00017354,2]
[374128015,1753219838798,-460.0,0.00017354,2]
[374128016,1753219838807,-460.0,0.00017355,2]
[374128017,1753219838816,-460.0,0.00017355,2]
[374128018,1753219838826,-460.0,0.00017355,2]
[374128019,1753219838835,-460.0,0.00017355,2]
[374128020,1753219838845,-460.0,0.00017355,2]
[374128021,1753219838856,-460.0,0.00017356,2]
[374128022,1753219838866,-460.0,0.00017356,2]
[374128023,1753219838876,-460.0,0.00017356,2]
[374128024,1753219838886,-460.0,0.00017356,2]
[374128025,1753219838895,-460.0,0.00017357,2]
[374128026,1753219838904,-460.0,0.00017357,2]
[374128027,1753219838913,-555.51243723,0.00017626,2]
[374128028,1753219838922,-500.0,0.00017626,2]
[374128029,1753219838932,-500.0,0.00017626,2]
[374128030,1753219838941,-500.0,0.00017626,2]
[374128031,1753219838950,-373.17601295,0.00017626,2]
[374128032,1753219838959,-500.0,0.00017626,2]
[374128033,1753219838968,-500.0,0.00017626,2]
[374128034,1753219838977,-500.0,0.00017626,2]
[374128035,1753219838986,-500.0,0.00017626,2]
[374128036,1753219838995,-500.0,0.00017626,2]
[374128037,1753219839004,-502.8461249,0.00017626,2]
[374128038,1753219839014,-500.0,0.00017626,2]
[374128039,1753219839023,-500.0,0.00017626,2]
[374128040,1753219839032,-500.0,0.00017626,2]
[374128041,1753219839041,-558.43700208,0.00017626,2]
[374128042,1753219839051,-500.0,0.00017626,2]
[374128043,1753219839060,-500.0,0.00017626,2]
[374128044,1753219839070,-540.85932228,0.00017626,2]
[374128045,1753219839079,-617.63182335,0.00017626,2]
[374128046,1753219839088,-460.0,0.00017627,2]
[374128047,1753219839099,-460.0,0.00017627,2]
[374128048,1753219839110,-460.0,0.00017628,2]
[374128049,1753219839120,-460.0,0.00017628,2]
[374128050,1753219839130,-460.0,0.00017628,2]
[374128051,1753219839139,-460.0,0.00017628,2]
[374128052,1753219839148,-460.0,0.00017629,2]
[374128053,1753219839158,-460.0,0.00017629,2]
[374128054,1753219839168,-460.0,0.00017629,2]
[374128055,1753219839177,-460.0,0.00017629,2]
[374128056,1753219839187,-460.0,0.00017629,2]
[374128057,1753219839195,-460.0,0.0001763,2]
[374128058,1753219839205,-460.0,0.0001763,2]
[374128059,1753219839214,-460.0,0.0001763,2]
[374128060,1753219839224,-460.0,0.0001763,2]
[374128061,1753219839233,-460.0,0.00017631,2]
[374128062,1753219839243,-460.0,0.00017631,2]
[374128063,1753219839251,-460.0,0.00017901,2]
[374128064,1753219839261,-460.0,0.00017901,2]
[374128065,1753219839270,-460.0,0.00017902,2]
[374128066,1753219839279,-460.0,0.00017902,2]
[374128067,1753219839288,-460.0,0.00017902,2]
[374128068,1753219839298,-460.0,0.00017902,2]
[374128069,1753219839307,-460.0,0.00017903,2]
[374128070,1753219839317,-460.0,0.00017903,2]
[374128071,1753219839326,-460.0,0.00017903,2]
[374128072,1753219839335,-460.0,0.00017903,2]
[374128074,1753219839344,-460.0,0.00017903,2]
[374128075,1753219839354,-460.0,0.00017904,2]
[374128076,1753219839363,-592.28,0.00017904,2]
[374128077,1753219839372,-460.0,0.00017904,2]
[374128078,1753219839381,-460.0,0.00017904,2]
[374128079,1753219839390,-460.0,0.00017905,2]
[374128080,1753219839399,-460.0,0.00017905,2]
[374128081,1753219839408,-460.0,0.00018175,2]
[374128082,1753219839417,-546.98,0.00018175,2]
[374128083,1753219839428,-460.0,0.00018176,2]
[374128084,1753219839437,-460.0,0.00018176,2]
[374128085,1753219839446,-460.0,0.00018176,2]
[374128086,1753219839455,-460.0,0.00018176,2]
[374128087,1753219839465,-460.0,0.00018177,2]
[374128088,1753219839475,-460.0,0.00018177,2]
[374128089,1753219839484,-460.0,0.00018177,2]
[374128090,1753219839493,-460.0,0.00018177,2]
[374128091,1753219839502,-460.0,0.00018177,2]
[374128092,1753219839512,-460.0,0.00018178,2]
[374128093,1753219839521,-460.0,0.00018178,2]
[374128094,1753219839530,-460.0,0.00018178,2]
[374128095,1753219839540,-460.0,0.00018179,2]
[374128096,1753219839549,-460.0,0.00018179,2]
[374128097,1753219839558,-500.0,0.00018209,2]
[374128098,1753219839567,-500.0,0.00018209,2]
[374128100,1753219839576,-460.0,0.00018449,2]
[374128101,1753219839586,-460.0,0.0001845,2]
[374128102,1753219839595,-460.0,0.0001845,2]
[374128103,1753219839607,-460.0,0.0001845,2]
[374128104,1753219839616,-460.0,0.00018451,2]
[374128105,1753219839625,-460.0,0.00018451,2]
[374128106,1753219839634,-298.1,0.00018451,2]
[374128107,1753219839643,-460.0,0.00018451,2]
[374128108,1753219839652,-460.0,0.00018451,2]
[374128109,1753219839666,-460.0,0.00018452,2]
[374128110,1753219839675,-460.0,0.00018452,2]
[374128111,1753219839685,-460.0,0.00018452,2]
[374128112,1753219839695,-460.0,0.00018453,2]
[374128113,1753219839705,-460.0,0.00018453,2]
[374128114,1753219839715,-191.82,0.00018723,2]
[374128115,1753219839724,-460.0,0.00018724,2]
[374128116,1753219839735,-460.0,0.00018724,2]
[374128117,1753219839744,-460.0,0.00018724,2]
[374128119,1753219839753,-460.0,0.00018725,2]
[374128120,1753219839762,-460.0,0.00018725,2]
[374128122,1753219839771,-397.72,0.00018725,2]
[374128123,1753219839781,-460.0,0.00018725,2]
[374128124,1753219839792,-460.0,0.00018726,2]
[374128125,1753219839801,-460.0,0.00018726,2]
[374128127,1753219839810,-460.0,0.00018726,2]
[374128128,1753219839819,-460.0,0.00018727,2]
[374128129,1753219839828,-460.0,0.00018727,2]
[374128130,1753219839837,-1000.0,0.00018757,2]
[374128131,1753219839848,-1000.0,0.00018757,2]
[374128132,1753219839858,-168.648949,0.00018865,2]
[374128133,1753219839867,-214.6393183,0.00018887,2]
[374128134,1753219839876,-839.90542673,0.00018888,2]
[374128135,1753219839885,-160.0,0.00018888,2]
[374128136,1753219839894,-12619.94447631,0.00018888,2]
[374128137,1753219839903,-1047.67879791,0.000189,2]
[374128138,1753219839912,-460.0,0.00018998,2]
[374128139,1753219839921,-477.16015387,0.00018998,2]
[374128140,1753219839930,-460.0,0.00018998,2]
[374128141,1753219839940,-460.0,0.00018999,2]
[374128142,1753219839949,-460.0,0.00018999,2]
[374128143,1753219839958,-460.0,0.00018999,2]
[374128144,1753219839967,-460.0,0.00019,2]
[374128145,1753219839976,-223.80317226,0.00019,20]
[374128146,1753219839985,-460.0,0.00019,2]
[374128147,1753219839994,-460.0,0.00019,2]
[374128148,1753219840004,-460.0,0.00019001,2]
[374128149,1753219840013,-460.0,0.00019001,2]
[374128150,1753219840022,-666.0,0.00019178,2]
[374128151,1753219840031,-3357.5976194,0.00019178,2]
[374128152,1753219840040,-460.0,0.00019272,2]
[374128153,1753219840050,-460.0,0.00019272,2]
[374128154,1753219840059,-460.0,0.00019273,2]
[374128155,1753219840068,-182.44,0.00019273,2]
[374128156,1753219840077,-460.0,0.00019273,2]
[374128158,1753219840086,-460.0,0.00019274,2]
[374128160,1753219840096,-460.0,0.00019274,2]
[374128161,1753219840105,-460.0,0.00019274,2]
[374128163,1753219840115,-460.0,0.00019275,2]
[374128165,1753219840123,-460.0,0.00019275,2]
[374128166,1753219840133,-220.72215229,0.00019305,2]
[374128168,1753219840142,-500.0,0.00019305,2]
[374128170,1753219840152,-446.84609216,0.00019446,2]
[374128171,1753219840161,-2614.6535628,0.00019446,2]
[374128173,1753219840170,-233065.89014712,0.000195,2]
[374128175,1753219840180,-460.0,0.00019546,2]
[374128176,1753219840188,-460.0,0.00019546,2]
[374128178,1753219840197,-460.0,0.00019547,2]
[374128180,1753219840206,-460.0,0.00019547,2]
[374128181,1753219840215,-425.24,0.00019548,2]
[374128183,1753219840225,-460.0,0.00019548,2]
[374128184,1753219840233,-460.0,0.00019548,2]
[374128186,1753219840243,-460.0,0.00019549,2]
[374128187,1753219840252,-460.0,0.00019549,2]
[374128188,1753219840261,-460.0,0.0001982,2]
[374128189,1753219840270,-460.0,0.0001982,2]
[374128190,1753219840278,-510.0307951,0.00019821,2]
[374128191,1753219840288,-460.0,0.00019821,2]
[374128192,1753219840296,-568.93245866,0.00019822,2]
[374128193,1753219840307,-355.08,0.00019822,2]
[374128194,1753219840316,-460.0,0.00019823,2]
[374128195,1753219840325,-460.0,0.00019823,2]
[374128196,1753219840335,-6927.78568918,0.0002,2]
[374128197,1753219840344,-2021.0217946,0.0002,2]
[374128198,1753219840353,-14350.5243845,0.0002,2]
[374128199,1753219840362,-3195.40999342,0.0002,2]
[374128200,1753219840371,-362.82157621,0.0002,2]
[374128201,1753219840380,-47340.97896948,0.0002,2]
[374128202,1753219840389,-20261.90329963,0.0002,2]
[374128203,1753219840398,-460.0,0.00020094,2]
[374128204,1753219840407,-460.0,0.00020094,2]
[374128205,1753219840416,-460.0,0.00020095,2]
[374128206,1753219840425,-460.0,0.00020097,2]
[374128207,1753219840434,-508.56,0.00020097,2]
[374128209,1753219840444,-371.479,0.000201,2]
[374128211,1753219840453,-511.832827,0.00020187,2]
[374128213,1753219840463,-460.0,0.00020368,2]
[374128215,1753219840472,-279.82,0.00020368,2]
[374128216,1753219840482,-197.45000001,0.00020369,2]
[374128217,1753219840491,-460.0,0.00020371,2]
[374128218,1753219840501,-644.91,0.00020494,2]
[374128219,1753219840511,-9297.13174675,0.000205,2]
[374128220,1753219840520,-429.6101251,0.00020577,2]
[374128221,1753219840529,-429.6101251,0.00020577,2]
[374128222,1753219840539,-429.6101251,0.00020577,2]
[374128223,1753219840548,-429.6101251,0.00020577,2]
[374128224,1753219840559,-429.6101251,0.00020577,2]
[374128225,1753219840568,-460.0,0.00020642,2]
[374128226,1753219840578,-460.0,0.00020645,2]
[374128227,1753219840587,-446.84609212,0.00020836,2]
[374128228,1753219840597,-429.6101251,0.00020841,2]
[374128229,1753219840606,-460.0,0.00020916,2]
[374128230,1753219840615,-460.0,0.00020919,2]
[374128231,1753219840624,-159.8957685,0.00021132,2]
[374128232,1753219840633,-178.204927,0.00021132,2]
[374128233,1753219840643,-159.8957685,0.00021132,2]
[374128234,1753219840652,-178.204927,0.00021132,2]
[374128235,1753219840666,-159.8957685,0.00021132,2]
[374128236,1753219840675,-178.204927,0.00021132,2]
[374128237,1753219840684,-159.8957685,0.00021132,2]
[374128238,1753219840694,-159.8957685,0.00021132,2]
[374128239,1753219840705,-178.204927,0.00021132,2]
[374128240,1753219840714,-178.204927,0.00021132,2]
[374128241,1753219840723,-577.4526085,0.00021132,2]
[374128242,1753219840733,-319.6289394,0.00021132,2]
[374128243,1753219840743,-178.204927,0.00021132,2]
[374128244,1753219840754,-577.4526085,0.00021132,2]
[374128245,1753219840763,-178.1701134,0.00021138,2]
[374128246,1753219840773,-436.54397559,0.0002119,2]
[374128247,1753219840782,-460.0,0.00021193,2]
[374128248,1753219840792,-174.97645,0.00021308,8]
[374128249,1753219840802,-460.0,0.00021467,2]
[374128250,1753219840811,-429.6101251,0.00021536,2]
[374128251,1753219840820,-429.6101251,0.00021536,2]
[374128252,1753219840830,-429.6101251,0.00021536,2]
[374128253,1753219840839,-429.6101251,0.00021543,2]
[374128254,1753219840848,-429.6101251,0.00021543,2]
[374128255,1753219840857,-429.6101251,0.00021543,2]
[374128256,1753219840866,-429.6101251,0.00021543,2]
[374128257,1753219840875,-429.6101251,0.00021543,2]
[374128258,1753219840885,-429.6101251,0.00021543,2]
[374128259,1753219840895,-429.6101251,0.00021543,2]
[374128260,1753219840905,-429.6101251,0.00021543,2]
[374128261,1753219840914,-429.6101251,0.00021543,2]
[374128262,1753219840924,-429.6101251,0.00021543,2]
[374128263,1753219840933,-429.6101251,0.00021543,2]
[374128264,1753219840942,-429.6101251,0.00021543,2]
[374128265,1753219840951,-429.6101251,0.00021543,2]
[374128266,1753219840961,-429.6101251,0.00021543,2]
[374128267,1753219840970,-429.6101251,0.00021543,2]
[374128268,1753219841072,-429.6101251,0.00021543,2]
[374128269,1753219841082,-429.6101251,0.00021543,2]
[374128270,1753219841091,-429.6101251,0.00021543,2]
[374128271,1753219841100,-429.6101251,0.00021543,2]
[374128272,1753219841109,-429.6101251,0.00021543,2]
[374128273,1753219841118,-429.6101251,0.00021543,2]
[374128274,1753219841127,-429.6101251,0.00021543,2]
[374128275,1753219841137,-429.6101251,0.00021543,2]
[374128276,1753219841146,-215.0738,0.00021628,2]
[374128277,1753219841155,-151.0,0.00021628,2]
[374128278,1753219841166,-151.0,0.00021628,2]
[374128279,1753219841175,-151.0,0.00021628,2]
[374128280,1753219841184,-151.0,0.00021628,2]
[374128281,1753219841193,-151.0,0.00021628,2]
[374128282,1753219841202,-198.0,0.00021628,2]
[374128283,1753219841211,-151.0,0.00021628,2]
[374128284,1753219841220,-151.0,0.00021628,2]
[374128285,1753219841230,-151.0,0.00021628,2]
[374128286,1753219841239,-151.0,0.00021628,2]
[374128287,1753219841248,-151.0,0.00021628,2]
[374128288,1753219841257,-151.0,0.00021628,2]
[374128289,1753219841266,-151.0,0.00021628,2]
[374128290,1753219841276,-151.0,0.00021628,2]
[374128291,1753219841285,-151.0,0.00021628,2]
[374128292,1753219841294,-151.0,0.00021628,2]
[374128293,1753219841305,-151.0,0.00021628,2]
[374128294,1753219841314,-151.0,0.00021628,2]
[374128295,1753219841324,-151.0,0.00021628,2]
[374128296,1753219841333,-151.0,0.00021628,2]
[374128297,1753219841342,-151.0,0.00021628,2]
[374128298,1753219841352,-48955.2758174,0.0002166,2]
[374128299,1753219841361,-500.0,0.00021672,2]
[374128300,1753219841373,-500.0,0.00021672,2]
[374128301,1753219841385,-433.84319161,0.00021672,2]
[374128302,1753219841395,-562.48002694,0.00021672,2]
[374128303,1753219841405,-562.48002694,0.00021672,2]
[374128304,1753219841414,-500.0,0.00021673,2]
[374128305,1753219841424,-355.09842483,0.00021673,2]
[374128306,1753219841434,-637.35740586,0.00021673,2]
[374128307,1753219841449,-555.95152196,0.00021673,2]
[374128308,1753219841458,-350.99718503,0.00021673,2]
[374128309,1753219841467,-500.0,0.00021673,2]
[374128310,1753219841476,-500.0,0.00021673,2]
[374128311,1753219841486,-500.0,0.00021673,2]
[374128312,1753219841495,-500.0,0.00021673,2]
[374128313,1753219841504,-500.0,0.00021673,2]
[374128314,1753219841514,-500.0,0.00021673,2]
[374128315,1753219841524,-500.0,0.00021673,2]
[374128316,1753219841533,-500.0,0.00021673,2]
[374128317,1753219841542,-500.0,0.00021673,2]
[374128318,1753219841552,-500.0,0.00021673,2]
[374128319,1753219841562,-500.0,0.00021673,2]
[374128320,1753219841571,-501.29806592,0.00021673,2]
[374128321,1753219841580,-622.74603772,0.00021673,2]
[374128322,1753219841588,-500.0,0.00021673,2]
[374128323,1753219841597,-500.0,0.00021673,2]
[374128324,1753219841607,-500.0,0.00021673,2]
[374128325,1753219841617,-500.0,0.00021673,2]
[374128326,1753219841626,-266298.27983896,0.000217,2]
[374128327,1753219841641,-27643.98239652,0.000217,2]
[374128328,1753219841673,-738.6676937,0.00016808,2]
[374128351,1753219844317,-7.7723063,0.00016808,2]
[374128352,1753219844327,-746.44,0.00017082,2]
[374128353,1753219844336,-2894.25412776,0.000217,2]
[374128354,1753219844417,-746.44,0.00017356,2]
[374128355,1753219844426,-583.92281741,0.0001763,2]
[374128361,1753219846086,-282.31770247,0.00017626,2]
[374128362,1753219846096,-162.51718259,0.0001763,2]
[374128363,1753219846105,-746.44,0.00017904,2]
[374128364,1753219846114,-746.44,0.00018178,2]
[374128365,1753219846125,-746.44,0.00018452,2]
[374128366,1753219846133,-746.44,0.00018726,2]
[374128367,1753219846142,-746.44,0.00019,2]
[374128368,1753219846152,-53.19659348,0.00019274,2]
[374128369,1753219846197,-693.24340652,0.00019274,2]
[374128370,1753219846206,-746.44,0.00019548,2]
[374128371,1753219846213,-429.6101251,0.00020577,2]
[374128372,1753219846222,-178.204927,0.00021132,2]
[374128373,1753219846230,-9642.50154138,0.000217,2]
[374128374,1753219846244,-10554.99132171,0.000217,2]
[374128377,1753220292207,10000.0,0.00016187,2]
[374128378,1753220462992,24900.0,0.00015876,2]
[374128379,1753220504612,291.108157,0.00015876,2]
[374128380,1753220621134,507.007814,0.00013699,2]
[374128405,1753221032173,-1200.0,0.00016796,2]
[374128439,1753221032687,-300.0,0.00016796,2]
[374128441,1753221032696,-300.0,0.00016796,2]
[374128443,1753221032707,-118.97378285,0.00016796,2]
[374128445,1753221032718,-181.02621715,0.00016796,2]
[374128447,1753221032728,-300.0,0.00016796,2]
[374128450,1753221032738,-300.0,0.00016796,2]
[374128452,1753221032747,-500.0,0.00016797,2]
[374128454,1753221032757,-500.0,0.00016797,2]
[374128456,1753221032767,-500.0,0.00016797,2]
[374128458,1753221032775,-500.0,0.00016797,2]
[374128460,1753221032785,-500.0,0.00016797,2]
[374128462,1753221032794,-500.0,0.00016797,2]
[374128464,1753221032804,-500.0,0.00016797,2]
[374128466,1753221032813,-500.0,0.00016797,2]
[374128468,1753221032822,-500.0,0.00016797,2]
[374128470,1753221032832,-500.0,0.00016797,2]
[374128472,1753221032842,-500.0,0.00016797,2]
[374128474,1753221032852,-500.0,0.00016797,2]
[374128476,1753221032862,-631.969415,0.00016797,2]
[374128478,1753221032872,-460.0,0.00016804,2]
[374128480,1753221032882,-460.0,0.00016804,2]
[374128482,1753221032892,-460.0,0.00016804,2]
[374128484,1753221032901,-460.0,0.00016804,2]
[374128486,1753221032911,-460.0,0.00016804,2]
[374128488,1753221032920,-460.83588759,0.00016804,2]
[374128491,1753221032931,-460.0,0.00016804,2]
[374128493,1753221032941,-460.34489683,0.00016804,2]
[374128494,1753221032951,-460.0,0.00016804,2]
[374128497,1753221032961,-460.0,0.00016804,2]
[374128499,1753221032971,-148.51447977,0.00016804,2]
[374128501,1753221032984,-311.48552023,0.00016804,2]
[374128503,1753221032994,-460.0,0.00016804,2]
[374128505,1753221033004,-460.0,0.00016804,2]
[374128507,1753221033014,-460.0,0.00016804,2]
[374128509,1753221033023,-460.0,0.00016804,2]
[374128511,1753221033035,-467.04062904,0.00016804,2]
[374128513,1753221033044,-460.0,0.00016804,2]
[374128515,1753221033053,-460.0,0.00016804,2]
[374128517,1753221033067,-460.0,0.00016804,2]
[374128519,1753221033076,-460.0,0.00016804,2]
[374128521,1753221033088,-463.36643536,0.00016804,2]
[374128524,1753221033098,-460.0,0.00016805,2]
[374128526,1753221033107,-460.0,0.00016805,2]
[374128528,1753221033119,-460.0,0.00016805,2]
[374128530,1753221033129,-460.0,0.00016805,2]
[374128532,1753221033141,-460.0,0.00016805,2]
[374128534,1753221033152,-460.0,0.00016805,2]
[374128536,1753221033162,-1000.0,0.00016805,2]
[374128538,1753221033172,-460.0,0.00016805,2]
[374128540,1753221033182,-460.0,0.00016805,2]
[374128542,1753221033191,-460.0,0.00016805,2]
[374128544,1753221033201,-460.0,0.00016805,2]
[374128546,1753221033210,-460.0,0.00016805,2]
[374128548,1753221033220,-460.0,0.00016805,2]
[374128550,1753221033230,-460.0,0.00016805,2]
[374128552,1753221033240,-460.0,0.00016805,2]
[374128554,1753221033250,-460.0,0.00016805,2]
[374128556,1753221033260,-540.17,0.00016805,2]
[374128558,1753221033270,-460.0,0.00016805,2]
[374128560,1753221033279,-460.0,0.00016805,2]
[374128562,1753221033290,-460.0,0.00016805,2]
[374128564,1753221033300,-460.0,0.00016805,2]
[374128566,1753221033310,-460.0,0.00016805,2]
[374128568,1753221033320,-460.0,0.00016805,2]
[374128571,1753221033332,-460.0,0.00016805,2]
[374128573,1753221033342,-460.0,0.00016805,2]
[374128575,1753221033351,-460.0,0.00016805,2]
[374128577,1753221033361,-460.0,0.00016805,2]
[374128579,1753221033371,-526.53,0.00016805,2]
[374128581,1753221033381,-460.0,0.00016805,2]
[374128583,1753221033391,-460.0,0.00016805,2]
[374128585,1753221033400,-460.0,0.00016805,2]
[374128587,1753221033410,-460.0,0.00016805,2]
[374128589,1753221033420,-460.0,0.00016805,2]
[374128591,1753221033430,-460.0,0.00016806,2]
[374128593,1753221033440,-463.50101196,0.00016806,2]
[374128595,1753221033450,-460.0,0.00016806,2]
[374128597,1753221033460,-471.53554573,0.00016806,2]
[374128599,1753221033469,-460.0,0.00016806,2]
[374128601,1753221033479,-460.0,0.00016806,2]
[374128603,1753221033488,-460.0,0.00016806,2]
[374128605,1753221033498,-460.0,0.00016806,2]
[374128607,1753221033508,-460.0,0.00016806,2]
[374128609,1753221033517,-460.0,0.00016806,2]
[374128611,1753221033527,-603.53,0.00016806,2]
[374128613,1753221033536,-460.0,0.00016806,2]
[374128615,1753221033546,-460.0,0.00016806,2]
[374128617,1753221033556,-460.0,0.00016806,2]
[374128619,1753221033566,-460.0,0.00016806,2]
[374128621,1753221033575,-460.0,0.00016806,2]
[374128623,1753221033585,-460.0,0.00016806,2]
[374128625,1753221033595,-460.0,0.00016806,2]
[374128628,1753221033612,-568.98,0.00016806,2]
[374128630,1753221033622,-517.95190271,0.00016806,2]
[374128632,1753221033631,-460.0,0.00016806,2]
[374128634,1753221033641,-526.92643438,0.00016806,2]
[374128636,1753221033651,-460.0,0.00016806,2]
[374128638,1753221033660,-460.5025434,0.00016806,2]
[374128640,1753221033670,-460.0,0.00016806,2]
[374128642,1753221033679,-460.0,0.00016806,2]